bitfinex/quotes_ETHUSD_20250508
["timestamp","ask_amount","ask_price","bid_price","bid_amount"]
[1746726552505,0.04874057,2041.7,2039.5,2.46942317]
[1746726552506,4.9466485,2041.7,2041.0,0.7563]
[1746726552814,5.71873053,2041.6,2041.1,3.498]
[1746726553002,4.89878746,2041.4,2041.1,7.085]
[1746726553206,4.89860462,2041.4,2041.1,7.085]
[1746726553431,4.94675672,2041.7,2041.2,4.89898765]
[1746726553594,4.94675672,2041.7,2041.1,11.98421234]
[1746726553595,4.89846169,2041.5,2041.1,11.98421234]
[1746726553795,4.94720226,2041.5,2041.1,11.98421234]
[1746726554095,4.94727647,2041.5,2041.1,7.085]
[1746726554328,4.89846957,2041.5,2041.1,11.98423447]
[1746726554490,4.8990236,2041.3,2041.1,7.085]
[1746726555009,4.89886662,2041.3,2041.1,7.085]
[1746726555217,4.89886662,2041.3,2041.0,0.7563]
[1746726555541,3.8206,2041.9,2041.2,3.497]
[1746726555542,0.55,2041.8,2041.2,3.497]
[1746726555691,3.04874057,2041.8,2041.4,4.89848732]
[1746726555896,4.89727468,2042.0,2041.6,5.71931455]
[1746726556134,4.89727468,2042.0,2041.7,3.497]
[1746726556338,4.89716843,2042.0,2041.7,3.497]
[1746726556693,4.89746124,2041.9,2041.7,3.497]
[1746726557142,4.9463799,2041.8,2041.7,3.497]
[1746726557301,4.89763933,2041.8,2041.7,3.497]
[1746726557501,4.94627413,2041.9,2041.7,3.497]
[1746726557906,4.9460537,2042.0,2041.7,3.497]
[1746726558102,4.8974494,2041.9,2041.7,3.497]
[1746726558301,4.9460537,2042.0,2041.7,3.497]
[1746726558302,4.94593466,2042.0,2041.7,3.497]
[1746726558908,4.89740116,2041.9,2041.7,3.497]
[1746726559095,4.89740116,2041.9,2041.7,1.30911465]
[1746726559300,0.04874057,2042.1,2041.8,4.89760837]
[1746726559615,4.89685137,2042.2,2041.8,4.89758017]
[1746726559616,4.94556397,2042.2,2041.8,4.89758017]
[1746726559815,4.8968234,2042.2,2041.8,4.89758017]
[1746726560017,4.89703317,2042.1,2041.7,6.20689801]
[1746726560235,4.89785021,2041.8,2041.5,3.497]
[1746726560741,4.89755534,2041.9,2041.5,7.064]
[1746726560909,4.94647212,2041.8,2041.6,3.497]
[1746726561104,0.781,2042.1,2041.6,3.497]
[1746726561434,4.89708815,2042.1,2041.6,8.39495921]
[1746726561606,4.89701508,2042.1,2041.7,0.87877568]
[1746726561811,4.8972657,2042.0,2041.7,0.8298]
[1746726562030,4.94581983,2042.1,2041.7,0.8298]
[1746726562328,4.89722579,2042.0,2041.7,0.8298]
[1746726562538,4.898599,2041.4,2041.3,9.673]
[1746726562833,4.89844256,2041.5,2041.3,3.563]
[1746726563035,4.94712777,2041.5,2041.3,3.563]
[1746726563539,4.89964323,2041.0,2040.9,3.563]
[1746726563835,4.89885196,2041.3,2040.9,8.46267553]
[1746726564040,4.94752861,2041.4,2041.0,3.563]
[1746726564241,4.89894592,2041.3,2041.0,3.563]
[1746726564807,4.94746194,2041.4,2041.0,3.563]
[1746726565038,4.89884593,2041.3,2041.0,3.563]
[1746726565344,4.94745163,2041.4,2041.0,3.563]
[1746726565544,4.89659513,2042.3,2041.0,3.563]
[1746726565545,0.7735,2041.8,2041.1,4.89917984]
[1746726565752,3.0,2041.6,2041.2,0.8328]
[1746726565951,0.04874057,2041.7,2041.2,5.73170127]
[1746726566117,0.04874057,2041.7,2041.3,4.89874463]
[1746726566314,4.94662298,2041.7,2041.4,3.557]
[1746726566514,4.94662298,2041.7,2041.5,3.564]
[1746726567015,0.04874057,2041.7,2041.5,3.564]
[1746726567207,4.89811912,2041.6,2041.2,5.73172509]
[1746726567410,0.04874057,2041.5,2041.3,3.564]
[1746726567815,4.89819727,2041.6,2041.3,3.564]
[1746726568419,4.9467506,2041.7,2041.3,3.564]
[1746726568812,4.89775051,2041.8,2041.3,3.564]
[1746726568813,4.94650077,2041.8,2041.3,3.564]
[1746726569148,4.89799724,2041.7,2041.4,7.113]
[1746726570542,4.89812929,2041.6,2041.2,5.73169081]
[1746726570749,4.89802049,2041.7,2041.4,3.564]
[1746726570924,4.94676106,2041.7,2041.4,3.564]
[1746726571338,0.04874057,2041.7,2041.4,3.564]
[1746726571537,4.94671864,2041.7,2041.4,3.564]
[1746726571812,0.7698,2042.4,2041.7,4.89771389]
[1746726572012,0.7698,2042.4,2041.8,3.538]
[1746726572013,4.89671288,2042.2,2041.8,3.538]
[1746726572213,4.89671288,2042.2,2041.9,3.564]
[1746726572214,4.94566471,2042.1,2041.9,3.564]
[1746726572943,0.04874057,2042.1,2041.9,3.564]
[1746726573152,4.94572375,2042.1,2041.9,3.564]
[1746726573323,0.04874057,2042.1,2041.9,3.564]
[1746726573525,4.94566362,2042.1,2041.9,3.564]
[1746726574342,0.04874057,2042.1,2041.9,3.564]
[1746726574747,0.04874057,2042.2,2041.9,3.564]
[1746726574912,4.89591828,2042.6,2042.0,4.94599012]
[1746726575115,4.94480149,2042.5,2042.0,5.70069012]
[1746726575315,4.89501476,2042.9,2042.0,5.70069012]
[1746726575316,4.07075035,2043.0,2042.4,5.45921375]
[1746726575555,5.66613382,2043.2,2042.6,4.89560983]
[1746726575717,0.27300277,2043.1,2042.8,4.89501724]
[1746726575916,0.27300277,2043.1,2042.7,5.50816727]
[1746726575917,4.89482146,2043.0,2042.7,5.50816727]
[1746726576216,0.27300277,2043.1,2042.7,4.89533008]
[1746726576431,4.89428687,2043.2,2042.7,4.89529086]
[1746726576627,4.94288186,2043.3,2042.7,10.3546188]
[1746726576914,4.89430169,2043.2,2042.7,10.35457429]
[1746726577320,4.89430169,2043.2,2042.7,4.89536054]
[1746726577521,4.89521893,2042.9,2042.8,3.519]
[1746726577752,0.04874057,2042.9,2042.5,0.8214]
[1746726577916,4.89515411,2042.9,2042.6,7.082]
[1746726578750,4.89515411,2042.9,2042.5,0.8214]
[1746726578960,4.8950236,2042.9,2042.7,7.081]
[1746726580251,4.8950236,2042.9,2042.5,0.8214]
[1746726580457,4.89609251,2042.5,2042.3,7.077]
[1746726580654,0.04874057,2042.8,2042.3,7.077]
[1746726580856,4.94385222,2042.9,2042.4,4.89616211]
[1746726581066,4.94385693,2042.9,2042.3,11.97335331]
[1746726581223,4.94385693,2042.9,2042.4,4.89608393]
[1746726581424,0.04874057,2042.9,2042.5,4.89593854]
[1746726581744,4.94295023,2043.3,2042.8,4.89510953]
[1746726581928,4.94295023,2043.3,2042.9,7.076]
[1746726582444,4.94295023,2043.3,2042.9,11.97098473]
[1746726582758,4.89371941,2043.5,2043.0,5.67832387]
[1746726583001,4.89383042,2043.4,2043.0,0.7837]
[1746726583464,0.04874057,2043.5,2043.0,5.67836514]
[1746726583671,4.94241769,2043.5,2043.1,4.89448298]
[1746726583819,0.04874057,2043.6,2043.2,4.89425541]
[1746726584164,4.89404208,2043.4,2043.3,7.069]
[1746726584658,4.94240791,2043.5,2043.3,7.069]
[1746726585363,4.89380444,2043.4,2043.3,7.069]
[1746726585950,9.83618489,2043.5,2043.3,7.069]
[1746726586158,4.89380444,2043.4,2043.3,7.069]
[1746726586654,4.89452302,2043.1,2043.0,0.7837]
[1746726586872,4.89470664,2043.1,2042.9,3.561]
[1746726587074,4.89510117,2042.9,2042.8,7.059]
[1746726587441,4.9436177,2043.0,2042.8,7.059]
[1746726587742,0.04874057,2043.1,2042.8,7.059]
[1746726587941,7.89438158,2043.2,2042.8,13.14969135]
[1746726588247,4.89391183,2043.4,2042.9,0.04894548]
[1746726588465,4.89411065,2043.3,2043.0,0.7583]
[1746726588683,0.04874057,2043.2,2042.9,3.497]
[1746726588979,4.89417596,2043.3,2042.9,3.497]
[1746726588980,4.89393295,2043.4,2042.9,8.39196584]
[1746726589174,4.89380444,2043.4,2042.9,8.39196584]
[1746726589351,4.89407174,2043.3,2042.9,3.497]
[1746726589561,4.89385284,2043.4,2042.9,8.39181273]
[1746726589962,4.89408642,2043.3,2042.9,8.39181273]
[1746726590177,4.89603767,2042.5,2042.3,3.561]
[1746726590378,4.89580304,2042.6,2042.3,7.056]
[1746726590675,0.04874057,2042.9,2042.6,4.89570516]
[1746726590881,4.89503837,2042.9,2042.5,4.89592412]
[1746726591088,4.89503837,2042.9,2042.5,4.89591213]
[1746726591268,4.89487479,2043.0,2042.5,7.1264032]
[1746726591468,0.04874057,2043.0,2042.6,5.72801954]
[1746726591667,4.89477671,2043.0,2042.6,5.72800583]
[1746726591864,0.04874057,2043.1,2042.7,0.04894983]
[1746726592065,4.94287368,2043.3,2042.9,4.89490068]
[1746726592265,4.94287368,2043.3,2043.0,3.491]
[1746726592468,4.94287368,2043.3,2042.9,4.89490068]
[1746726592669,0.04874057,2043.3,2043.0,6.983]
[1746726592870,4.89383107,2043.4,2043.1,1.4742]
[1746726593183,4.89391238,2043.4,2043.1,0.7759]
[1746726593342,4.8934651,2043.6,2043.1,0.7759]
[1746726593543,4.89364988,2043.5,2043.1,5.67026673]
[1746726593743,4.8937408,2043.5,2043.1,0.7759]
[1746726593953,4.89367329,2043.5,2043.1,5.67034221]
[1746726594160,4.89367329,2043.5,2043.1,7.97105871]
[1746726595174,4.89404394,2043.3,2043.2,3.483]
[1746726596660,4.89404394,2043.3,2043.1,0.7759]
[1746726596958,4.89428347,2043.2,2043.1,0.7759]
[1746726597161,4.89428347,2043.2,2043.0,6.971]
[1746726597480,4.94293572,2043.3,2043.0,6.971]
[1746726597679,4.89440306,2043.2,2043.0,3.492]
[1746726597880,4.89440306,2043.2,2043.0,6.967]
[1746726598981,4.89440306,2043.2,2043.0,3.492]
[1746726599349,4.89440306,2043.2,2042.9,0.7884]
[1746726599550,4.8947626,2043.0,2042.9,6.959]
[1746726599757,4.8947626,2043.0,2042.7,7.7222]
[1746726599758,4.89522987,2042.9,2042.7,7.7222]
[1746726600054,4.89522987,2042.9,2042.7,3.492]
[1746726600252,4.89522987,2042.9,2042.7,6.961]
[1746726600854,4.89508771,2042.9,2042.7,6.961]
[1746726601054,0.04874057,2043.1,2042.7,5.59137147]
[1746726601255,4.89460822,2043.1,2042.7,5.59156602]
[1746726601567,4.8948035,2043.0,2042.7,0.6961]
[1746726601766,7.89443538,2043.2,2042.8,0.7928]
[1746726601967,4.89459905,2043.1,2042.8,0.7928]
[1746726602166,0.55,2043.7,2042.9,0.04894682]
[1746726602371,0.55,2043.7,2042.9,0.04894364]
[1746726602372,4.89399512,2043.4,2042.9,0.04894364]
[1746726602560,4.89339277,2043.6,2043.2,0.7928]
[1746726602754,4.89321471,2043.7,2043.3,6.955]
[1746726602755,4.89357507,2043.5,2043.3,6.955]
[1746726603000,4.89380444,2043.4,2043.2,0.7928]
[1746726603195,4.89404394,2043.3,2043.2,4.2848]
[1746726603397,8.66574394,2043.3,2043.2,6.955]
[1746726603603,8.71448451,2043.3,2043.2,3.492]
[1746726603804,8.98739467,2043.3,2043.2,3.492]
[1746726604485,8.98739467,2043.3,2042.8,4.2909]
[1746726604486,4.8950022,2042.9,2042.8,3.462]
[1746726604685,4.04461016,2043.3,2042.8,3.462]
[1746726604888,4.89375996,2043.5,2043.0,4.89466219]
[1746726605203,4.8934064,2043.6,2043.3,0.8118]
[1746726605519,4.8937037,2043.5,2043.3,7.7698]
[1746726606382,4.89337523,2043.6,2043.3,7.7698]
[1746726606908,4.89488266,2043.0,2042.8,0.8281]
[1746726607114,4.89468326,2043.1,2042.8,0.8281]
[1746726607405,4.09015126,2043.5,2042.8,0.8281]
[1746726607606,4.89486868,2043.0,2042.7,6.956]
[1746726607960,4.89465835,2043.1,2042.7,11.85146416]
[1746726608166,0.04874057,2043.3,2042.8,1.75156764]
[1746726608476,0.04874057,2043.3,2042.7,6.956]
[1746726608477,4.89481226,2043.0,2042.7,6.956]
[1746726608681,4.89436113,2043.2,2042.8,4.8951749]
[1746726608915,0.04874057,2043.3,2042.9,4.89491902]
[1746726609118,4.89409376,2043.3,2043.0,0.7847]
[1746726609523,4.89404394,2043.3,2043.0,0.7847]
[1746726609682,4.89437448,2043.2,2043.0,0.7847]
[1746726609882,4.89421273,2043.3,2043.0,0.7847]
[1746726610325,4.89421273,2043.3,2043.0,1.84219273]
[1746726610326,4.89431004,2043.2,2043.0,1.84219273]
[1746726611531,4.89420477,2043.3,2043.0,1.84219273]
[1746726611686,4.89432637,2043.2,2043.0,1.84219273]
[1746726611883,0.04874057,2043.2,2042.7,4.2594]
[1746726612218,4.89424281,2043.3,2042.8,4.94401928]
[1746726612421,4.89436268,2043.2,2042.8,4.89507023]
[1746726612829,4.89368514,2043.5,2043.1,4.89439953]
[1746726613070,4.89343272,2043.6,2043.1,4.89439953]
[1746726613071,4.89342683,2043.6,2043.2,6.99893751]
[1746726613327,5.16683799,2043.5,2043.3,0.7886]
[1746726613478,4.89380444,2043.4,2043.2,6.95]
[1746726613681,4.89380444,2043.4,2042.7,5.45921375]
[1746726613682,0.55,2043.1,2041.9,0.45325535]
[1746726613903,4.89691983,2042.1,2042.0,0.04893687]
[1746726614105,4.89739948,2041.9,2041.8,0.768]
[1746726614483,4.89710696,2042.1,2041.8,0.768]
[1746726614683,4.89720695,2042.0,2041.8,0.768]
[1746726615231,4.89668645,2042.2,2041.9,3.646]
[1746726615585,4.89668645,2042.2,2041.8,0.768]
[1746726615886,9.79359462,2042.2,2041.9,7.297]
[1746726616114,4.89691983,2042.1,2042.0,3.646]
[1746726616295,4.89660368,2042.3,2042.0,3.646]
[1746726616502,4.89636284,2042.4,2042.0,3.69496804]
[1746726616697,4.89638189,2042.4,2042.0,3.69496804]
[1746726616933,4.8961802,2042.5,2042.1,0.8239]
[1746726617140,4.89631571,2042.4,2042.1,0.8239]
[1746726617583,4.89609913,2042.5,2042.1,0.8239]
[1746726617933,4.8963229,2042.4,2042.1,0.8239]
[1746726618129,0.7991,2042.9,2042.2,4.89654995]
[1746726618287,4.89556749,2042.7,2042.3,0.57694132]
[1746726618490,4.8958341,2042.6,2042.3,0.57694132]
[1746726619023,4.89562821,2042.7,2042.3,0.62589926]
[1746726619234,4.89555608,2042.7,2042.3,5.52231055]
[1746726619631,4.89575484,2042.6,2042.4,3.636]
[1746726620489,4.89548354,2042.7,2042.4,3.636]
[1746726620687,4.89535799,2042.8,2042.4,3.636]
[1746726620908,4.94418438,2042.8,2042.5,3.646]
[1746726621114,0.8076,2043.3,2042.6,0.85205464]
[1746726621313,4.89486152,2043.0,2042.6,5.69873279]
[1746726621733,4.89464309,2043.1,2042.6,5.74762356]
[1746726621938,3.28595035,2043.4,2042.9,4.89486135]
[1746726622108,3.28595035,2043.4,2042.8,4.89508049]
[1746726622109,4.8944094,2043.2,2042.8,4.89508049]
[1746726622434,4.8944094,2043.2,2043.0,7.272]
[1746726622793,4.89461163,2043.1,2042.9,7.27]
[1746726623124,4.89442526,2043.2,2042.9,8.05]
[1746726623321,4.89452345,2043.1,2042.9,8.05]
[1746726623641,4.89443487,2043.2,2042.9,8.05]
[1746726623815,4.89414119,2043.3,2043.0,0.04894357]
[1746726624024,9.78839432,2043.3,2042.9,14.23942263]
[1746726624219,4.89382432,2043.4,2043.0,4.94359378]
[1746726624427,4.89356496,2043.5,2042.9,9.34453465]
[1746726624595,4.89415975,2043.3,2043.0,1.42395594]
[1746726624789,4.89381319,2043.4,2043.0,6.31861572]
[1746726625394,9.78782638,2043.4,2043.0,6.31861572]
[1746726625708,4.89381319,2043.4,2043.1,7.255]
[1746726626420,4.89407313,2043.3,2043.1,7.255]
[1746726626639,4.89407313,2043.3,2043.0,1.42395594]
[1746726626640,9.78833498,2043.3,2043.0,1.42395594]
[1746726626833,4.89407313,2043.3,2043.2,7.248]
[1746726627334,4.89443023,2043.2,2043.0,3.646]
[1746726627635,4.89465069,2043.1,2043.0,3.646]
[1746726628225,4.89516127,2042.9,2042.8,3.646]
[1746726628452,4.8950022,2042.9,2042.8,3.646]
[1746726628755,4.8944615,2043.2,2042.8,3.646]
[1746726628959,4.8944615,2043.2,2042.8,9.83092014]
[1746726629254,0.7695,2043.6,2042.9,0.7707]
[1746726629435,4.8940487,2043.3,2042.9,5.6655546]
[1746726630017,4.89429233,2043.2,2042.9,0.7707]
[1746726630347,4.89419678,2043.3,2042.9,5.6657014]
[1746726630552,4.89394694,2043.4,2043.0,6.44439852]
[1746726630851,4.89372536,2043.5,2043.1,0.04893856]
[1746726631012,4.89372536,2043.5,2043.2,3.6]
[1746726631349,0.14138092,2043.4,2043.2,3.6]
[1746726631549,5.03532288,2043.4,2043.2,3.6]
[1746726631739,0.14138092,2043.4,2043.2,3.6]
[1746726631943,0.14138092,2043.4,2043.2,8.49428248]
[1746726632142,0.14138092,2043.4,2043.2,4.77742959]
[1746726632341,4.8936503,2043.5,2043.2,4.77742959]
[1746726632545,0.11934985,2043.3,2043.2,3.6]
[1746726632718,4.8936503,2043.5,2043.2,7.246]
[1746726632913,0.11963613,2043.4,2043.3,0.7655]
[1746726633116,3.28595035,2043.7,2043.3,6.22471375]
[1746726633347,0.11078719,2043.6,2043.4,4.89367719]
[1746726633511,0.11078719,2043.6,2043.4,7.21944012]
[1746726633717,3.28595035,2043.7,2043.6,4.8933255]
[1746726633929,3.28595035,2043.7,2043.5,5.66575452]
[1746726634216,0.11177764,2043.6,2043.5,5.66575452]
[1746726634555,3.28595035,2043.7,2043.5,5.66567559]
[1746726634726,0.8287,2044.2,2043.5,5.66567559]
[1746726634727,4.89216557,2044.1,2043.6,0.79915071]
[1746726635057,0.11433343,2044.0,2043.7,7.231]
[1746726635261,0.11433343,2044.0,2043.8,5.66504913]
[1746726635417,3.28595035,2044.2,2043.9,0.04891992]
[1746726635620,3.28595035,2044.2,2043.9,4.89259781]
[1746726635828,0.10529131,2044.1,2043.9,4.89259781]
[1746726636173,3.28595035,2044.2,2044.0,4.94126547]
[1746726636466,0.10675692,2044.0,2043.9,6.67149281]
[1746726636668,3.28595035,2044.2,2044.0,4.89216719]
[1746726636869,3.28595035,2044.2,2044.1,5.71994274]
[1746726637173,3.28595035,2044.2,2044.1,5.67102856]
[1746726637326,3.28595035,2044.2,2044.1,7.94041574]
[1746726637665,3.28595035,2044.2,2044.1,10.98932822]
[1746726637823,3.28595035,2044.2,2044.1,10.94041574]
[1746726638467,3.28595035,2044.2,2044.1,11.49231574]
[1746726638760,1.60458123,2044.2,2044.1,20.60231574]
[1746726638924,4.88975191,2045.1,2044.7,4.89063473]
[1746726639120,0.11314106,2045.0,2044.8,12.85744062]
[1746726639350,0.11314106,2045.0,2044.9,8.53521468]
[1746726639559,4.8891053,2045.4,2044.9,8.53521468]
[1746726639756,4.88929523,2045.3,2045.0,0.04889081]
[1746726639920,5.00455715,2045.3,2045.0,0.04889081]
[1746726640122,5.00455715,2045.3,2044.9,3.645]
[1746726640428,0.11526192,2045.3,2045.0,3.61489176]
[1746726640649,5.00461571,2045.3,2045.0,3.61489176]
[1746726640851,4.88952664,2045.2,2045.0,3.566]
[1746726641054,5.00566972,2045.2,2045.0,3.566]
[1746726641427,0.11614308,2045.2,2045.1,5.71563644]
[1746726641627,0.11614308,2045.2,2045.1,2.61245297]
[1746726641867,4.88917954,2045.4,2045.1,0.8259]
[1746726642162,9.16062703,2045.5,2045.2,0.04888843]
[1746726642328,0.11642857,2045.3,2045.1,11.17467315]
[1746726642527,7.88841975,2045.7,2045.2,4.88949735]
[1746726642763,0.1179653,2045.6,2045.2,6.8525144]
[1746726642962,0.1179653,2045.6,2045.3,4.88922083]
[1746726643189,0.1179653,2045.6,2045.2,1.96301705]
[1746726643326,4.88910096,2045.4,2045.3,7.205]
[1746726643538,4.88949735,2045.2,2045.1,3.643]
[1746726643756,5.00447364,2045.2,2045.1,3.643]
[1746726644854,0.11497629,2045.2,2045.1,3.643]
[1746726645066,0.11497629,2045.2,2045.1,4.85260861]
[1746726645240,4.88865865,2045.6,2045.1,10.55670388]
[1746726645436,0.11536525,2045.2,2045.1,10.55670388]
[1746726645653,4.88838856,2045.7,2045.3,4.88917261]
[1746726646056,4.88838856,2045.7,2045.2,5.45921375]
[1746726646366,4.88892839,2045.5,2045.3,1.60159441]
[1746726646530,4.88880225,2045.5,2045.2,3.564]
[1746726647082,4.88867296,2045.6,2045.2,8.45349611]
[1746726647451,4.88841178,2045.7,2045.3,0.04888417]
[1746726647653,4.88817369,2045.8,2045.4,4.88898698]
[1746726647855,4.88854125,2045.6,2045.5,3.559]
[1746726648366,4.8884245,2045.7,2045.5,3.559]
[1746726648569,4.88826672,2045.8,2045.5,3.559]
[1746726648783,4.88826672,2045.8,2045.5,4.3688]
[1746726648980,4.9523748,2045.9,2045.5,5.38774871]
[1746726649279,4.95235627,2045.9,2045.5,10.27635428]
[1746726649582,0.10670689,2045.8,2045.7,4.88830229]
[1746726649755,0.10670689,2045.8,2045.7,9.80756734]
[1746726649957,0.10670689,2045.8,2045.7,16.6807554]
[1746726650156,0.10670689,2045.8,2045.7,16.63189035]
[1746726650377,0.06444218,2045.9,2045.8,9.25476334]
[1746726650579,0.06444218,2045.9,2045.8,9.30362467]
[1746726651458,0.06444218,2045.9,2045.8,9.25476334]
[1746726651750,0.06444218,2045.9,2045.8,12.44746168]
[1746726651988,0.06444218,2045.9,2045.8,9.44746168]
[1746726653172,0.06444218,2045.9,2045.8,12.5003272]
[1746726653372,0.06444218,2045.9,2045.8,12.45146168]
[1746726653578,0.17192025,2045.9,2045.8,12.45146168]
[1746726654393,0.17192025,2045.9,2045.8,16.01546168]
[1746726654964,0.06444218,2045.9,2045.8,19.56546168]
[1746726655261,0.16905397,2045.9,2045.8,19.56546168]
[1746726655493,0.06444218,2045.9,2045.8,19.56546168]
[1746726656672,0.06444218,2045.9,2045.8,16.56546168]
[1746726658991,0.06444218,2045.9,2045.8,22.67546168]
[1746726659183,0.06444218,2045.9,2045.8,22.12546168]
[1746726659384,0.06444218,2045.9,2045.8,15.00746168]
[1746726659866,0.17002579,2045.9,2045.8,15.00746168]
[1746726660072,0.06444218,2045.9,2045.8,15.00746168]
[1746726660585,0.06444218,2045.9,2045.8,22.09846168]
[1746726660771,0.1699286,2045.9,2045.8,17.21039834]
[1746726661160,0.06444218,2045.9,2045.8,22.09846168]
[1746726661457,0.06444218,2045.9,2045.8,25.64846168]
[1746726661805,0.05523615,2046.0,2045.9,4.88782442]
[1746726662097,0.1104723,2046.0,2045.9,8.94638759]
[1746726662863,0.1104723,2046.0,2045.9,17.65765141]
[1746726663057,0.1104723,2046.0,2045.9,23.76765141]
[1746726663262,0.1104723,2046.0,2045.9,24.58545141]
[1746726663995,4.99805783,2046.0,2045.9,10.16856317]
[1746726664214,0.1104723,2046.0,2045.9,13.193]
[1746726664875,0.1104723,2046.0,2045.9,6.11]
[1746726665076,0.21825898,2046.0,2045.9,13.19]
[1746726665403,4.88854125,2045.6,2045.5,21.169]
[1746726665611,4.88823354,2045.8,2045.5,21.169]
[1746726665910,0.89536871,2045.6,2045.3,3.562]
[1746726666064,0.89536871,2045.6,2045.3,8.40505489]
[1746726666065,0.7908,2045.6,2045.3,8.40505489]
[1746726666270,0.10228989,2045.5,2045.4,12.01690307]
[1746726666615,4.88824992,2045.8,2045.4,11.96801926]
[1746726666815,4.88806334,2045.8,2045.4,7.079]
[1746726666973,0.10315263,2045.7,2045.5,0.04888295]
[1746726667169,0.10315263,2045.7,2045.5,12.02064312]
[1746726667407,5.73395671,2045.9,2045.5,11.97176017]
[1746726667593,5.73395671,2045.9,2045.6,0.04887856]
[1746726667794,4.88812733,2045.8,2045.6,0.04887856]
[1746726668513,0.10300692,2045.7,2045.5,7.083]
[1746726668984,0.10300692,2045.7,2045.5,7.1318823]
[1746726669304,0.10300692,2045.7,2045.5,7.083]
[1746726669526,4.9914066,2045.7,2045.5,7.13188258]
[1746726669715,0.10300692,2045.7,2045.5,7.083]
[1746726669916,0.10300692,2045.7,2045.6,0.04888301]
[1746726670215,4.99130921,2045.7,2045.5,7.083]
[1746726670417,0.10300692,2045.7,2045.5,7.083]
[1746726670746,4.88818829,2045.8,2045.6,0.04887925]
[1746726671022,4.88864723,2045.6,2045.5,7.074]
[1746726671388,4.98949267,2045.6,2045.5,7.074]
[1746726671887,0.10084544,2045.6,2045.5,7.074]
[1746726672283,0.10084544,2045.6,2045.5,7.12288137]
[1746726672917,5.73404327,2045.9,2045.5,12.01166161]
[1746726673220,0.10170811,2045.8,2045.6,1.6900577]
[1746726673387,0.10170811,2045.8,2045.5,7.074]
[1746726673388,0.10170811,2045.8,2045.7,0.04887808]
[1746726673586,5.73399298,2045.9,2045.7,0.04887808]
[1746726673819,0.10199986,2045.8,2045.7,0.04887808]
[1746726674024,4.99007689,2045.8,2045.6,0.04887817]
[1746726674186,4.88807703,2045.8,2045.6,0.04887817]
[1746726674531,5.73398095,2045.9,2045.6,0.04887817]
[1746726674741,0.05523615,2045.9,2045.6,1.32653323]
[1746726674888,0.05523615,2045.9,2045.8,5.72046334]
[1746726675192,0.05523615,2045.9,2045.6,11.37633261]
[1746726675193,0.05523615,2045.9,2045.6,6.16611586]
[1746726675398,4.94306065,2045.9,2045.6,6.16611586]
[1746726675705,0.05523615,2045.9,2045.7,1.40725159]
[1746726675908,0.05523615,2045.9,2045.7,6.2955523]
[1746726676225,0.05523615,2045.9,2045.7,1.40725159]
[1746726676612,0.05523615,2045.9,2045.7,6.29547265]
[1746726677141,4.94306517,2045.9,2045.7,1.40725159]
[1746726677341,0.05523615,2045.9,2045.7,1.40725159]
[1746726678262,4.88830229,2045.7,2045.6,6.11]
[1746726678456,4.88830229,2045.7,2045.3,0.8161]
[1746726678457,4.88863056,2045.6,2045.3,0.8161]
[1746726678617,4.8881663,2045.8,2045.4,7.0408835]
[1746726678815,4.8882087,2045.8,2045.4,11.92989141]
[1746726679018,9.77649142,2045.8,2045.4,11.88100791]
[1746726679218,4.88833993,2045.7,2045.4,8.75063504]
[1746726679444,4.88833993,2045.7,2045.4,8.79951519]
[1746726680229,4.88833993,2045.7,2045.5,6.992]
[1746726680429,4.88833993,2045.7,2045.6,0.04888017]
[1746726680864,4.88833993,2045.7,2045.5,7.04088016]
[1746726681856,4.88878024,2045.5,2045.4,1.75863504]
[1746726682023,4.88830229,2045.7,2045.6,6.986]
[1746726682358,4.88830229,2045.7,2045.6,3.501]
[1746726683115,4.88854125,2045.6,2045.3,0.8161]
[1746726683361,4.88854125,2045.6,2045.4,6.98]
[1746726683657,4.88878024,2045.5,2045.4,3.501]
[1746726683853,4.88878024,2045.5,2045.4,6.979]
[1746726684160,4.88854125,2045.6,2045.4,6.979]
[1746726684351,4.88854125,2045.6,2045.4,3.5498836]
[1746726684566,4.88854125,2045.6,2045.5,3.476]
[1746726684775,4.88854125,2045.6,2045.5,6.976]
[1746726686334,4.88842003,2045.7,2045.5,6.976]
[1746726686965,4.88816982,2045.8,2045.5,8.16740173]
[1746726687146,9.77646376,2045.8,2045.6,0.04887973]
[1746726687347,4.88830229,2045.7,2045.6,0.04887973]
[1746726687554,4.88854125,2045.6,2045.5,6.976]
[1746726689683,4.88854125,2045.6,2045.5,7.0248825]
[1746726689987,4.88830229,2045.7,2045.5,7.0248825]
[1746726690580,4.8881463,2045.8,2045.5,8.21627713]
[1746726690947,4.88830629,2045.7,2045.5,8.21627713]
[1746726691156,0.05523615,2045.9,2045.5,8.21627713]
[1746726691370,9.77651568,2045.8,2045.5,8.21627713]
[1746726691545,4.88821857,2045.8,2045.5,8.21627713]
[1746726692378,9.77650671,2045.8,2045.5,8.21627713]
[1746726692580,4.88821857,2045.8,2045.5,8.21627713]
[1746726692880,4.88846776,2045.7,2045.5,8.21627713]
[1746726693881,4.88854125,2045.6,2045.5,7.0248825]
[1746726694055,4.88846517,2045.7,2045.5,7.0248825]
[1746726694682,4.88816966,2045.8,2045.5,7.0248825]
[1746726694882,4.88831594,2045.7,2045.5,7.0248825]
[1746726698312,4.88847159,2045.7,2045.5,7.0248825]
[1746726698582,4.88818524,2045.8,2045.5,7.0248825]
[1746726699191,5.16133911,2045.7,2045.5,7.0248825]
[1746726699786,4.88854125,2045.6,2045.5,0.0488825]
[1746726700087,4.88878024,2045.5,2045.4,6.918]
[1746726700387,5.16151384,2045.6,2045.4,6.96688434]
[1746726700868,0.27288147,2045.6,2045.4,6.96688434]
[1746726701040,5.16143136,2045.6,2045.5,3.501]
[1746726701240,4.88854989,2045.6,2045.5,3.501]
[1746726702543,4.88844054,2045.7,2045.4,0.04888434]
[1746726702771,9.77696724,2045.7,2045.5,3.501]
[1746726702974,0.05523615,2045.9,2045.8,4.88806334]
[1746726703177,0.05523615,2045.9,2045.8,7.75732452]
[1746726703398,0.05523615,2045.9,2045.6,2.86926118]
[1746726703715,4.88807189,2045.8,2045.7,6.912]
[1746726704066,4.88807189,2045.8,2045.7,6.914]
[1746726704402,5.1607773,2045.8,2045.7,6.914]
[1746726705410,4.88865638,2045.6,2045.3,0.7579]
[1746726705571,4.88838458,2045.7,2045.4,6.818]
[1746726705981,4.88838458,2045.7,2045.3,5.64705041]
[1746726706211,4.88838458,2045.7,2045.4,6.817]